fUSD/lending_fUSD_20240831
["ID","MTS","AMOUNT","RATE_DAILY","PERIOD"]
[336727733,1725085173313,-991.52,0.00039452,120]
[336727734,1725085173364,-3797.36,0.00039452,120]
[336727735,1725085173420,-500.0,0.00039452,120]
[336727736,1725085173471,-1736.62,0.00039452,120]
[336727737,1725085173524,-500.0,0.00039452,120]
[336727738,1725085173655,-5801.83,0.00039452,120]
[336727739,1725085173706,-1384.4,0.00039452,120]
[336727740,1725085173756,-2192.32,0.00039452,120]
[336727741,1725085173805,-731.6,0.00039452,120]
[336727742,1725085173856,-500.0,0.00039452,120]
[336727743,1725085173908,-500.0,0.00039452,120]
[336727744,1725085173957,-2250.69,0.00039452,120]
[336727745,1725085174007,-2120.14,0.00039452,120]
[336727746,1725085174058,-2458.49,0.00039452,120]
[336727747,1725085174106,-500.0,0.00039452,120]
[336727748,1725085174157,-500.0,0.00039452,120]
[336727749,1725085174207,-500.0,0.00039452,120]
[336727750,1725085174255,-500.0,0.00039452,120]
[336727751,1725085174304,-2003.2,0.00039452,120]
[336727752,1725085174350,-540.27,0.00039452,120]
[336727753,1725085174398,-500.0,0.00039452,120]
[336727754,1725085174449,-500.0,0.00039452,120]
[336727755,1725085174496,-667.74,0.00039452,120]
[336727756,1725085174543,-535.3762106,0.00039452,120]
[336727757,1725085174593,-500.0,0.00039452,120]
[336727758,1725085174643,-2118.23,0.00039452,120]
[336727759,1725085174688,-600.38,0.00039452,120]
[336727760,1725085174743,-2392.95,0.00039452,120]
[336727761,1725085174792,-522.69,0.00039452,120]
[336727762,1725085174838,-1210.64,0.00039452,120]
[336727763,1725085174884,-500.0,0.00039452,120]
[336727764,1725085174931,-559.71777068,0.00039452,120]
[336727765,1725085174979,-500.0,0.00039452,120]
[336727766,1725085175023,-500.0,0.00039452,120]
[336727767,1725085175068,-500.0,0.00039452,120]
[336727768,1725085175112,-500.0,0.00039452,120]
[336727769,1725085175156,-518.46803426,0.00039452,120]
[336727770,1725085175204,-1856.52,0.00039452,120]
[336727771,1725085175255,-500.0,0.00039452,120]
[336727772,1725085175305,-500.0,0.00039452,120]
[336727773,1725085175355,-500.0,0.00039452,120]
[336727774,1725085175404,-500.0,0.00039452,120]
[336727775,1725085175451,-500.0,0.00039452,120]
[336727776,1725085175496,-500.0,0.00039452,120]
[336727777,1725085175543,-500.0,0.00039452,120]
[336727778,1725085175591,-856.67,0.00039452,120]
[336727779,1725085175641,-500.0,0.00039452,120]
[336727780,1725085175690,-1905.46,0.00039452,120]
[336727781,1725085175740,-500.0,0.00039452,120]
[336727782,1725085175791,-1521.24,0.00039452,120]
[336727783,1725085175842,-1476.4,0.00039452,120]
[336727784,1725085175890,-398.49228081,0.00039452,120]
[336727785,1725085175937,-500.0,0.00039452,120]
[336727786,1725085175987,-547.37,0.00039452,120]
[336727787,1725085176036,-500.0,0.00039452,120]
[336727788,1725085176083,-862.89,0.00039452,120]
[336727789,1725085176132,-1176.12,0.00039452,120]
[336727790,1725085176182,-660.11,0.00039452,120]
[336727791,1725085176231,-2325.34,0.00039452,120]
[336727792,1725085176279,-500.0,0.00039452,120]
[336727793,1725085176327,-501.74,0.00039452,120]
[336727794,1725085176376,-501.40745928,0.00039452,120]
[336727795,1725085176424,-500.0,0.00039452,120]
[336727796,1725085176472,-849.88,0.00039452,120]
[336727797,1725085176522,-2388.65,0.00039452,120]
[336727798,1725085176570,-500.0,0.00039452,120]
[336727799,1725085176620,-2070.59,0.00039452,120]
[336727800,1725085176667,-500.0,0.00039452,120]
[336727801,1725085176711,-4375.49,0.00039452,120]
[336727802,1725085176759,-1982.62,0.00039452,120]
[336727803,1725085176805,-500.0,0.00039452,120]
[336727804,1725085176852,-500.0,0.00039452,120]
[336727805,1725085176899,-500.0,0.00039452,120]
[336727806,1725085176943,-500.0,0.00039452,120]
[336727807,1725085176988,-500.0,0.00039452,120]
[336727808,1725085177032,-2073.66,0.00039452,120]
[336727809,1725085177078,-500.0,0.00039452,120]
[336727810,1725085177122,-909.97,0.00039452,120]
[336727811,1725085177166,-523.5,0.00039452,120]
[336727812,1725085177212,-500.0,0.00039452,120]
[336727813,1725085177257,-500.0,0.00039452,120]
[336727814,1725085177303,-500.0,0.00039452,120]
[336727815,1725085177347,-500.0,0.00039452,120]
[336727816,1725085177394,-2189.52,0.00039452,120]
[336727817,1725085177440,-500.0,0.00039452,120]
[336727818,1725085177484,-500.0,0.00039452,120]
[336727819,1725085177531,-1371.6,0.00039452,120]
[336727820,1725085177576,-561.78,0.00039452,30]
[336727821,1725085177622,-180.30517661,0.00039452,120]
[336727822,1725085177668,-804.7,0.00039452,120]
[336727823,1725085177715,-1829.3,0.00039452,120]
[336727824,1725085177757,-1112.52,0.00039452,120]
[336727825,1725085177801,-500.0,0.00039452,120]
[336727826,1725085177844,-525.5225077,0.00039452,120]
[336727827,1725085177888,-529.75460882,0.00039452,120]
[336727828,1725085177935,-2039.92,0.00039452,120]
[336727829,1725085177978,-964.65,0.00039452,120]
[336727830,1725085178024,-500.0,0.00039452,120]
[336727831,1725085178067,-500.0,0.00039452,120]
[336727832,1725085178110,-500.0,0.00039452,120]
[336727833,1725085178153,-500.0,0.00039452,120]
[336727834,1725085178200,-1312.09,0.00039452,120]
[336727835,1725085178251,-500.0,0.00039452,120]
[336727836,1725085178299,-500.0,0.00039452,120]
[336727837,1725085178345,-1782.75,0.00039452,120]
[336727838,1725085178392,-500.0,0.00039452,120]
[336727839,1725085178443,-500.0,0.00039452,120]
[336727840,1725085178492,-1702.92,0.00039452,120]
[336727841,1725085178539,-1029.68,0.00039452,120]
[336727842,1725085178722,-500.0,0.00039452,120]
[336727843,1725085178769,-500.0,0.00039452,120]
[336727844,1725085178818,-2092.19,0.00039452,120]
[336727845,1725085178866,-500.0,0.00039452,120]
[336727846,1725085178910,-1324.2,0.00039452,120]
[336727847,1725085178956,-500.0,0.00039452,120]
[336727848,1725085178999,-500.75131316,0.00039452,120]
[336727849,1725085179043,-500.0,0.00039452,120]
[336727850,1725085179088,-500.0,0.00039452,120]
[336727851,1725085179131,-687.53,0.00039452,120]
[336727852,1725085179177,-500.0,0.00039452,120]
[336727853,1725085179224,-500.0,0.00039452,120]
[336727854,1725085179271,-1577.57,0.00039452,120]
[336727855,1725085179318,-500.0,0.00039452,120]
[336727856,1725085179362,-520.67312219,0.00039452,120]
[336727857,1725085179407,-1633.84,0.00039452,120]
[336727858,1725085179453,-927.35,0.00039452,120]
[336727859,1725085179497,-500.0,0.00039452,120]
[336727860,1725085179544,-500.0,0.00039452,120]
[336727861,1725085179588,-500.0,0.00039452,120]
[336727862,1725085179635,-500.0,0.00039452,120]
[336727863,1725085179680,-500.0,0.00039452,120]
[336727864,1725085179724,-500.0,0.00039452,120]
[336727865,1725085179768,-500.0,0.00039452,120]
[336727866,1725085179811,-1255.1,0.00039452,120]
[336727867,1725085179854,-961.72,0.00039452,120]
[336727868,1725085179902,-500.0,0.00039452,120]
[336727869,1725085179947,-506.75854347,0.00039452,120]
[336727870,1725085179989,-500.0,0.00039452,120]
[336727871,1725085180033,-500.0,0.00039452,120]
[336727872,1725085180078,-500.0,0.00039452,120]
[336727873,1725085180120,-500.0,0.00039452,120]
[336727874,1725085180162,-553.73,0.00039452,120]
[336727875,1725085180206,-793.38,0.00039452,120]
[336727876,1725085180249,-500.0,0.00039452,120]
[336727877,1725085180293,-1344.82,0.00039452,120]
[336727878,1725085180336,-2218.72,0.00039452,120]
[336727879,1725085180382,-500.0,0.00039452,120]
[336727880,1725085180426,-500.0,0.00039452,120]
[336727881,1725085180470,-500.0,0.00039452,120]
[336727882,1725085180514,-846.91,0.00039452,120]
[336727883,1725085180558,-500.0,0.00039452,120]
[336727884,1725085180603,-1968.84,0.00039452,120]
[336727885,1725085180648,-4330.36,0.00039452,120]
[336727886,1725085180693,-500.0,0.00039452,120]
[336727887,1725085180739,-1518.96,0.00039452,120]
[336727888,1725085180786,-500.0,0.00039452,120]
[336727889,1725085180833,-1835.9,0.00039452,120]
[336727890,1725085180878,-500.0,0.00039452,120]
[336727891,1725085180923,-500.0,0.00039452,120]
[336727892,1725085180973,-500.0,0.00039452,120]
[336727893,1725085181018,-313.17146153,0.00039452,120]
[336727894,1725085181064,-260.9489119,0.00039452,120]
[336727895,1725085181111,-500.0,0.00039452,120]
[336727896,1725085181159,-6364.77,0.00039452,120]
[336727897,1725085181207,-1044.01,0.00039452,120]
[336727898,1725085181256,-500.0,0.00039452,120]
[336727899,1725085181302,-603.33,0.00039452,120]
[336727900,1725085181349,-2179.57,0.00039452,120]
[336727901,1725085181397,-805.02,0.00039452,120]
[336727902,1725085181442,-500.0,0.00039452,120]
[336727903,1725085181488,-3303.96,0.00039452,120]
[336727904,1725085181535,-922.46,0.00039452,120]
[336727905,1725085181579,-500.0,0.00039452,120]
[336727906,1725085181627,-1640.29,0.00039452,120]
[336727907,1725085181674,-1667.23,0.00039452,120]
[336727908,1725085181722,-586.11,0.00039452,120]
[336727909,1725085181770,-500.0,0.00039452,120]
[336727910,1725085181817,-500.55063313,0.00039452,120]
[336727911,1725085181863,-1646.21,0.00039452,120]
[336727912,1725085181912,-500.0,0.00039452,120]
[336727913,1725085181961,-1637.59,0.00039452,120]
[336727914,1725085182006,-591.32,0.00039452,120]
[336727915,1725085182053,-1683.05,0.00039452,120]
[336727916,1725085182100,-877.02,0.00039452,120]
[336727917,1725085182146,-795.81,0.00039452,120]
[336727918,1725085182193,-1799.57,0.00039452,120]
[336727919,1725085182244,-2067.77,0.00039452,120]
[336727920,1725085182291,-3314.7,0.00039452,120]
[336727921,1725085182339,-608.39,0.00039452,120]
[336727922,1725085182386,-1275.11,0.00039452,120]
[336727923,1725085182431,-500.0,0.00039452,120]
[336727924,1725085182476,-1665.52,0.00039452,120]
[336727925,1725085182521,-500.0,0.00039452,120]
[336727926,1725085182565,-1855.46,0.00039452,120]
[336727927,1725085182610,-500.0,0.00039452,120]
[336727928,1725085182656,-500.0,0.00039452,120]
[336727929,1725085182700,-572.01,0.00039452,120]
[336727930,1725085182744,-500.0,0.00039452,120]
[336727931,1725085183074,-500.0,0.00039452,120]
[336727932,1725085183136,-1905.21,0.00039452,120]
[336727933,1725085183185,-1704.35,0.00039452,120]
[336727934,1725085183240,-844.24,0.00039452,120]
[336727935,1725085183295,-1196.73,0.00039452,120]
[336727936,1725085183348,-500.0,0.00039452,120]
[336727937,1725085183400,-606.37,0.00039452,120]
[336727938,1725085183452,-19494.08,0.00039452,120]
[336727939,1725085183509,-1192.62,0.00039452,120]
[336727940,1725085183562,-1379.1,0.00039452,120]
[336727941,1725085183615,-2076.38,0.00039452,120]
[336727942,1725085183667,-2069.4,0.00039452,120]
[336727943,1725085183717,-500.0,0.00039452,120]
[336727944,1725085183767,-573.28,0.00039452,120]
[336727945,1725085183816,-1830.7,0.00039452,120]
[336727946,1725085183868,-500.0,0.00039452,120]
[336727947,1725085183920,-16344.0,0.00039452,120]
[336727948,1725085183969,-936.23,0.00039452,120]
[336727949,1725085184018,-505.41,0.00039452,120]
[336727950,1725085184069,-500.0,0.00039452,120]
[336727951,1725085184118,-500.0,0.00039452,120]
[336727952,1725085184166,-500.0,0.00039452,120]
[336727953,1725085184215,-500.0,0.00039452,120]
[336727954,1725085184263,-565.82,0.00039452,120]
[336727955,1725085184313,-520.43156115,0.00039452,120]
[336727956,1725085184364,-500.0,0.00039452,120]
[336727957,1725085184413,-1447.27,0.00039452,120]
[336727958,1725085184462,-500.0,0.00039452,120]
[336727959,1725085184509,-500.0,0.00039452,120]
[336727960,1725085184557,-2019.52,0.00039452,120]
[336727961,1725085184608,-802.68,0.00039452,120]
[336727962,1725085184660,-1846.73,0.00039452,120]
[336727963,1725085184709,-500.0,0.00039452,120]
[336727964,1725085184759,-500.0,0.00039452,120]
[336727965,1725085184806,-6347.53,0.00039452,120]
[336727966,1725085184853,-500.0,0.00039452,120]
[336727967,1725085184903,-709.12,0.00039452,120]
[336727968,1725085184955,-500.0,0.00039452,120]
[336727969,1725085185017,-500.0,0.00039452,120]
[336727970,1725085185068,-1624.05,0.00039452,120]
[336727971,1725085185116,-1465.91,0.00039452,120]
[336727972,1725085185167,-508.15,0.00039452,120]
[336727973,1725085185216,-1510.32,0.00039452,120]
[336727974,1725085185267,-1707.44,0.00039452,120]
[336727975,1725085185320,-500.0,0.00039452,120]
[336727976,1725085185370,-2842.73,0.00039452,120]
[336727977,1725085185422,-1745.59,0.00039452,120]
[336727978,1725085185476,-500.0,0.00039452,120]
[336727979,1725085185528,-1426.61,0.00039452,120]
[336727980,1725085185577,-657.37,0.00039452,120]
[336727981,1725085185630,-500.0,0.00039452,120]
[336727982,1725085185679,-500.0,0.00039452,120]
[336727983,1725085185728,-829.84,0.00039452,120]
[336727984,1725085185777,-500.0,0.00039452,120]
[336727985,1725085185831,-695.91,0.00039452,120]
[336727986,1725085185881,-508.01,0.00039452,120]
[336727987,1725085185932,-500.0,0.00039452,120]
[336727988,1725085185985,-7185.61,0.00039452,120]
[336727989,1725085186035,-500.0,0.00039452,120]
[336727990,1725085186086,-1862.6,0.00039452,120]
[336727991,1725085186137,-500.0,0.00039452,120]
[336727992,1725085186189,-500.0,0.00039452,120]
[336727993,1725085186242,-1694.24,0.00039452,120]
[336727994,1725085186294,-500.0,0.00039452,120]
[336727995,1725085186346,-9549.71,0.00039452,120]
[336727996,1725085186397,-1329.5,0.00039452,120]
[336727997,1725085186452,-199.7603639,0.00039452,120]
[336727998,1725085186506,-500.0,0.00039452,120]
[336727999,1725085186558,-1254.74,0.00039452,120]
[336728000,1725085186610,-500.0,0.00039452,120]
[336728001,1725085186665,-701.74,0.00039452,120]
[336728002,1725085186715,-17344.61,0.00039452,120]
[336728003,1725085186830,-308.77603316,0.00039452,120]
[336728004,1725085186877,-1718.9,0.00039452,120]
[336728005,1725085186923,-1599.11,0.00039452,120]
[336728006,1725085186969,-1266.46,0.00039452,120]
[336728007,1725085187017,-500.0,0.00039452,120]
[336728008,1725085187064,-500.0,0.00039452,120]
[336728009,1725085187109,-500.0,0.00039452,120]
[336728010,1725085187155,-536.3,0.00039452,120]
[336728011,1725085187201,-500.0,0.00039452,120]
[336728012,1725085187247,-500.0,0.00039452,120]
[336728013,1725085187293,-1416.58,0.00039452,120]
[336728014,1725085187338,-1344.35,0.00039452,120]
[336728015,1725085187383,-500.0,0.00039452,120]
[336728016,1725085187427,-1308.79,0.00039452,120]
[336728017,1725085187473,-1065.87,0.00039452,120]
[336728018,1725085187522,-598.48,0.00039452,120]
[336728019,1725085187568,-934.02,0.00039452,120]
[336728020,1725085187615,-1376.61,0.00039452,120]
[336728021,1725085187664,-2496.8,0.00039452,120]
[336728022,1725085187709,-1682.93,0.00039452,120]
[336728023,1725085187757,-500.0,0.00039452,120]
[336728024,1725085187802,-1537.85,0.00039452,120]
[336728025,1725085187846,-500.0,0.00039452,120]
[336728026,1725085187894,-500.0,0.00039452,120]
[336728027,1725085187941,-546.73,0.00039452,120]
[336728028,1725085187990,-464.1049295,0.00039452,120]
[336728029,1725085188037,-153.74845657,0.00039452,120]
[336728030,1725085188084,-710.47,0.00039452,120]
[336728031,1725085188131,-1026.63,0.00039452,120]
[336728032,1725085188178,-500.0,0.00039452,120]
[336728033,1725085188222,-1312.14,0.00039452,120]
[336728034,1725085188269,-500.0,0.00039452,120]
[336728035,1725085188315,-1653.03,0.00039452,120]
[336728036,1725085188364,-6675.51,0.00039452,120]
[336728037,1725085188411,-500.0,0.00039452,120]
[336728038,1725085188458,-500.0,0.00039452,120]
[336728039,1725085188503,-500.0,0.00039452,120]
[336728040,1725085188551,-500.0,0.00039452,120]
[336728041,1725085188600,-802.15,0.00039452,120]
[336728042,1725085188647,-522.63,0.00039452,120]
[336728043,1725085188693,-500.0,0.00039452,120]
[336728044,1725085188738,-500.0,0.00039452,120]
[336728045,1725085188783,-500.0,0.00039452,120]
[336728046,1725085188835,-520.04,0.00039452,120]
[336728047,1725085188881,-6155.51,0.00039452,120]
[336728048,1725085188925,-2507.7,0.00039452,120]
[336728049,1725085188971,-1148.46,0.00039452,120]
[336728050,1725085189013,-500.0,0.00039452,120]
[336728051,1725085189055,-554.41,0.00039452,120]
[336728052,1725085189099,-1325.16,0.00039452,120]
[336728053,1725085189140,-795.3,0.00039452,120]
[336728054,1725085189186,-2578.35,0.00039452,120]
[336728055,1725085189232,-500.0,0.00039452,120]
[336728056,1725085189278,-1311.27,0.00039452,120]
[336728057,1725085189322,-500.0,0.00039452,120]
[336728058,1725085189366,-500.0,0.00039452,120]
[336728059,1725085189410,-1407.95,0.00039452,120]
[336728060,1725085189454,-500.0,0.00039452,120]
[336728061,1725085189499,-597.52273838,0.00039452,120]
[336728062,1725085189548,-500.0,0.00039452,120]
[336728063,1725085189591,-1863.91,0.00039452,120]
[336728064,1725085189637,-3941.89,0.00039452,120]
[336728065,1725085189687,-2607.82,0.00039452,120]
[336728066,1725085189732,-500.0,0.00039452,120]
[336728067,1725085189774,-187.38608703,0.00039452,120]
[336728068,1725085189821,-1652.24,0.00039452,120]
[336728069,1725085189866,-641.76,0.00039452,120]
[336728070,1725085189909,-3058.12,0.00039452,120]
[336728071,1725085189955,-854.31,0.00039452,120]
[336728072,1725085189999,-500.0,0.00039452,120]
[336728073,1725085190043,-500.0,0.00039452,120]
[336728074,1725085190087,-3298.68,0.00039452,120]
[336728075,1725085190132,-527.05,0.00039452,120]
[336728076,1725085190178,-1830.04,0.00039452,120]
[336728077,1725085190226,-500.0,0.00039452,120]
[336728078,1725085190271,-500.0,0.00039452,120]
[336728079,1725085190319,-500.0,0.00039452,120]
[336728080,1725085190365,-500.0,0.00039452,120]
[336728081,1725085190411,-3711.8,0.00039452,120]
[336728082,1725085190457,-616.77,0.00039452,120]
[336728083,1725085190503,-2261.76,0.00039452,120]
[336728084,1725085190550,-956.29,0.00039452,120]
[336728085,1725085190595,-500.0,0.00039452,120]
[336728086,1725085190644,-500.0,0.00039452,120]
[336728087,1725085190691,-500.0,0.00039452,120]
[336728088,1725085190736,-3724.98,0.00039452,120]
[336728089,1725085190783,-675.48,0.00039452,120]
[336728090,1725085190832,-500.0,0.00039452,120]
[336728091,1725085190882,-500.0,0.00039452,120]
[336728092,1725085190929,-500.0,0.00039452,120]
[336728093,1725085190976,-500.0,0.00039452,120]
[336728094,1725085191022,-979.96,0.00039452,120]
[336728095,1725085191074,-532.04,0.00039452,120]
[336728096,1725085191124,-1078.05,0.00039452,120]
[336728097,1725085191172,-1120.41,0.00039452,120]
[336728098,1725085191228,-1968.69,0.00039452,120]
[336728099,1725085191281,-4649.47,0.00039452,120]
[336728100,1725085191333,-528.35,0.00039452,120]
[336728101,1725085191387,-9499.71,0.00039452,120]
[336728102,1725085191433,-500.0,0.00039452,120]
[336728103,1725085191480,-500.0,0.00039452,120]
[336728104,1725085191530,-500.0,0.00039452,120]
[336728105,1725085191577,-500.0,0.00039452,120]
[336728106,1725085191625,-2023.94,0.00039452,120]
[336728107,1725085191670,-500.0,0.00039452,120]
[336728108,1725085191856,-1332.09,0.00039452,120]
[336728109,1725085191909,-500.0,0.00039452,120]
[336728110,1725085191956,-876.79,0.00039452,120]
[336728111,1725085192011,-500.0,0.00039452,120]
[336728112,1725085192061,-1367.12,0.00039452,120]
[336728113,1725085192112,-500.0,0.00039452,120]
[336728114,1725085192162,-2302.97,0.00039452,120]
[336728115,1725085192208,-2989.98,0.00039452,120]
[336728116,1725085192257,-500.0,0.00039452,120]
[336728117,1725085192303,-1307.87,0.00039452,120]
[336728118,1725085192351,-500.0,0.00039452,120]
[336728119,1725085192401,-26611.03,0.00039452,120]
[336728120,1725085192449,-500.0,0.00039452,120]
[336728121,1725085192500,-1296.01,0.00039452,120]
[336728122,1725085192550,-1533.32,0.00039452,120]
[336728123,1725085192600,-4152.87,0.00039452,120]
[336728124,1725085192654,-500.0,0.00039452,120]
[336728125,1725085192706,-500.0,0.00039452,120]
[336728126,1725085192755,-4747.14,0.00039452,120]
[336728127,1725085192802,-500.0,0.00039452,120]
[336728128,1725085192850,-600.74,0.00039452,120]
[336728129,1725085192897,-5814.25,0.00039452,120]
[336728130,1725085192944,-13203.24,0.00039452,120]
[336728131,1725085192992,-629.87,0.00039452,120]
[336728132,1725085193039,-1062.71,0.00039452,120]
[336728133,1725085193083,-533.34,0.00039452,120]
[336728134,1725085193130,-1824.21,0.00039452,120]
[336728135,1725085193178,-1015.22,0.00039452,120]
[336728136,1725085193225,-500.0,0.00039452,120]
[336728137,1725085193276,-500.0,0.00039452,120]
[336728138,1725085193327,-6986.18,0.00039452,120]
[336728139,1725085193380,-500.0,0.00039452,120]
[336728140,1725085193432,-951.23,0.00039452,120]
[336728141,1725085193481,-5481.44,0.00039452,120]
[336728142,1725085193527,-894.49,0.00039452,120]
[336728143,1725085193576,-842.88,0.00039452,120]
[336728144,1725085193626,-500.0,0.00039452,120]
[336728145,1725085193676,-500.0,0.00039452,120]
[336728146,1725085193724,-4799.76,0.00039452,120]
[336728147,1725085193774,-633.60713762,0.00039452,120]
[336728148,1725085193832,-1186.34,0.00039452,120]
[336728149,1725085193881,-677.22,0.00039452,120]
[336728150,1725085193929,-500.0,0.00039452,120]
[336728151,1725085193980,-500.0,0.00039452,120]
[336728152,1725085194030,-767.11,0.00039452,120]
[336728153,1725085194080,-5075.61,0.00039452,120]
[336728154,1725085194129,-500.0,0.00039452,120]
[336728155,1725085194179,-500.0,0.00039452,120]
[336728156,1725085194232,-862.19,0.00039452,120]
[336728157,1725085194282,-513.2836376,0.00039452,120]
[336728158,1725085194336,-528.15,0.00039452,120]
[336728159,1725085194386,-562.28,0.00039452,120]
[336728160,1725085194434,-1245.25,0.00039452,120]
[336728161,1725085194482,-825.37,0.00039452,120]
[336728162,1725085194532,-1653.61,0.00039452,120]
[336728163,1725085194581,-1753.96,0.00039452,120]
[336728164,1725085194633,-2000.96,0.00039452,120]
[336728165,1725085194686,-500.0,0.00039452,120]
[336728166,1725085194742,-1013.59,0.00039452,120]
[336728167,1725085194792,-500.0,0.00039452,120]
[336728168,1725085194842,-1776.62,0.00039452,120]
[336728169,1725085194892,-500.0,0.00039452,120]
[336728170,1725085194940,-500.0,0.00039452,120]
[336728171,1725085194992,-3566.1,0.00039452,120]
[336728172,1725085195044,-500.0,0.00039452,120]
[336728173,1725085195096,-3910.3,0.00039452,120]
[336728174,1725085195143,-1570.05,0.00039452,120]
[336728175,1725085195195,-764.94,0.00039452,120]
[336728176,1725085195249,-500.0,0.00039452,120]
[336728177,1725085195301,-500.0,0.00039452,120]
[336728178,1725085195355,-500.0,0.00039452,120]
[336728179,1725085195405,-500.0,0.00039452,120]
[336728180,1725085195455,-500.0,0.00039452,120]
[336728181,1725085195507,-500.0,0.00039452,120]
[336728182,1725085195557,-500.0,0.00039452,120]
[336728183,1725085195609,-883.9,0.00039452,120]
[336728184,1725085195662,-500.0,0.00039452,120]
[336728185,1725085195713,-696.93,0.00039452,120]
[336728186,1725085195763,-500.0,0.00039452,120]
[336728187,1725085195824,-500.0,0.00039452,120]
[336728188,1725085195875,-500.0,0.00039452,120]
[336728189,1725085195923,-500.0,0.00039452,120]
[336728190,1725085195972,-212.34882707,0.00039452,120]
[336728191,1725085196021,-1372.32,0.00039452,120]
[336728192,1725085196069,-500.0,0.00039452,120]
[336728193,1725085196117,-833.92,0.00039452,120]
[336728194,1725085196165,-384.0392611,0.00039452,120]
[336728195,1725085196215,-3784.25,0.00039452,120]
[336728196,1725085196263,-500.0,0.00039452,120]
[336728197,1725085196589,-664.41,0.00039452,120]
[336728198,1725085196658,-500.0,0.00039452,120]
[336728199,1725085196708,-3255.01,0.00039452,120]
[336728200,1725085196758,-1438.05,0.00039452,120]
[336728201,1725085196807,-500.0,0.00039452,120]
[336728202,1725085196857,-863.53,0.00039452,120]
[336728203,1725085196906,-150.083107,0.00039498,120]
[336728204,1725085196954,-3267.6,0.00039529,74]
[336728205,1725085197003,-318.41937841,0.000396,30]
[336728206,1725085197051,-1183.36,0.00039608,30]
[336728207,1725085197099,-155.554048,0.000397,42]
[336728208,1725085197151,-1000.0,0.00039722,120]
[336728209,1725085197202,-150.0,0.00039723,120]
[336728210,1725085197251,-2000.0,0.00039745,120]
[336728211,1725085197307,-269.83,0.000398,31]
[336728212,1725085197360,-269.83,0.000398,31]
[336728213,1725085197414,-269.83,0.000398,31]
[336728214,1725085197467,-269.83,0.000398,31]
[336728215,1725085197520,-269.83,0.000398,31]
[336728216,1725085197570,-269.83,0.000398,31]
[336728217,1725085197621,-269.83,0.000398,31]
[336728218,1725085197673,-269.83,0.000398,31]
[336728219,1725085197722,-269.83,0.000398,31]
[336728220,1725085197771,-269.83,0.000398,31]
[336728221,1725085197821,-269.83,0.000398,31]
[336728222,1725085197873,-269.83,0.000398,31]
[336728223,1725085197923,-269.83,0.000398,31]
[336728224,1725085197975,-269.83,0.000398,31]
[336728225,1725085198028,-269.83,0.000398,31]
[336728226,1725085198081,-269.83,0.000398,31]
[336728227,1725085198129,-1183.36,0.00039808,30]
[336728228,1725085198181,-150.0,0.00039861,120]
[336728229,1725085198230,-552.58800322,0.0003988,30]
[336728230,1725085198276,-415.1023662,0.00039898,120]
[336728231,1725085198323,-587.28679461,0.00039898,90]
[336728232,1725085198369,-798.79060632,0.00039898,90]